fUST/lending_fUST_20250523
["ID","MTS","AMOUNT","RATE_DAILY","PERIOD"]
[362101555,1747995042012,-3000.0,0.000211,2]
[362101556,1747995042022,-3000.0,0.0002111,2]
[362101557,1747995042032,-3000.0,0.0002112,2]
[362101558,1747995042042,-3000.0,0.0002113,2]
[362101559,1747995042052,-3000.0,0.0002114,2]
[362101560,1747995042062,-3000.0,0.0002115,2]
[362101561,1747995042072,-3000.0,0.0002116,2]
[362101562,1747995042082,-3000.0,0.0002117,2]
[362101563,1747995042091,-3373.94499888,0.00021176,4]
[362101564,1747995042169,-788.80836504,0.00021176,4]
[362101565,1747995042178,-84.60437996,0.0002118,2]
[362101571,1747995042314,-2915.39562004,0.0002118,2]
[362101572,1747995042324,-3000.0,0.0002119,2]
[362101573,1747995042333,-2855.27141672,0.000212,2]
[362101574,1747995042345,-144.72858328,0.000212,2]
[362101575,1747995042355,-1351.26232064,0.0002121,2]
[362101576,1747995042366,-1460.20207003,0.0002121,2]
[362101597,1747995042943,-430.0,0.00017502,2]
[362101598,1747995042954,-111.65,0.0002061,3]
[362101599,1747995042967,-782.99583333,0.0002061,3]
[362101600,1747995042976,-188.53560933,0.0002121,2]
[362101601,1747995042986,-96.24455586,0.0002122,2]
[362101602,1747995042999,-2903.75544414,0.0002122,2]
[362101603,1747995043009,-3000.0,0.0002123,2]
[362101604,1747995043019,-3000.0,0.0002124,2]
[362101605,1747995043029,-537.728493,0.00021248,2]
[362101606,1747995043039,-1148.32,0.00021249,2]
[362101607,1747995043049,-430.0,0.00021249,2]
[362101608,1747995043058,-430.0,0.00021249,2]
[362101609,1747995043068,-430.0,0.00021249,2]
[362101610,1747995043078,-3000.0,0.0002125,2]
[362101611,1747995043088,-430.0,0.0002125,2]
[362101612,1747995043099,-430.55,0.0002125,2]
[362101613,1747995043109,-430.0,0.00021253,2]
[362101614,1747995043119,-430.0,0.00021253,2]
[362101615,1747995043128,-3000.0,0.0002126,2]
[362101616,1747995043137,-3000.0,0.0002127,2]
[362101617,1747995043147,-3000.0,0.0002128,2]
[362101618,1747995043157,-3000.0,0.0002129,2]
[362101619,1747995043168,-3000.0,0.000213,2]
[362101620,1747995043178,-3000.0,0.0002131,2]
[362101621,1747995043188,-3000.0,0.0002132,2]
[362101622,1747995043199,-3000.0,0.0002133,2]
[362101623,1747995043208,-430.0,0.00021338,2]
[362101624,1747995043219,-430.0,0.00021338,2]
[362101625,1747995043229,-1083.62,0.00021338,2]
[362101626,1747995043239,-524.38,0.00021338,2]
[362101627,1747995043248,-430.0,0.00021338,2]
[362101628,1747995043258,-1227.18,0.00021338,2]
[362101629,1747995043268,-453.07,0.00021338,2]
[362101630,1747995043277,-3000.0,0.0002134,2]
[362101631,1747995043287,-3000.0,0.0002135,2]
[362101632,1747995043297,-3000.0,0.0002136,2]
[362101633,1747995043307,-3000.0,0.0002137,2]
[362101634,1747995043317,-3000.0,0.0002138,2]
[362101635,1747995043327,-4162.75336392,0.00021383,5]
[362101637,1747995043459,-3000.0,0.0002139,2]
[362101638,1747995043492,-3000.0,0.000214,2]
[362101639,1747995043502,-3000.0,0.0002141,2]
[362101640,1747995043511,-3000.0,0.0002142,2]
[362101641,1747995043520,-3000.0,0.0002143,2]
[362101642,1747995043529,-4014.066004,0.0002144,2]
[362101643,1747995043539,-579.44841629,0.00021503,2]
[362101644,1747995043548,-1148.32,0.00021523,2]
[362101645,1747995043558,-430.0,0.00021523,2]
[362101646,1747995043567,-430.0,0.00021523,2]
[362101647,1747995043576,-430.0,0.00021523,2]
[362101648,1747995043585,-430.0,0.00021524,2]
[362101649,1747995043595,-430.55,0.00021524,2]
[362101650,1747995043606,-430.0,0.00021527,2]
[362101651,1747995043615,-196.17564788,0.00021527,2]
[362101652,1747995043625,-1500.0,0.00021587,2]
[362101653,1747995043634,-1134.73592157,0.0002159,5]
[362101654,1747995043646,-852.06410304,0.0002159,5]
[362101655,1747995043657,-536.92244762,0.0002159,5]
[362101656,1747995043679,-1639.03089169,0.0002159,5]
[362101657,1747995043688,-430.0,0.00021612,2]
[362101658,1747995043697,-430.0,0.00021612,2]
[362101659,1747995043707,-1083.62,0.00021612,2]
[362101660,1747995043717,-524.38,0.00021612,2]
[362101661,1747995043726,-430.0,0.00021612,2]
[362101662,1747995043735,-965.38273291,0.00021612,2]
[362101699,1747995046226,-3408.34757453,0.00020858,2]
[362101700,1747995046239,-1591.65242547,0.00020858,2]
[362101702,1747995046249,-158.2090311,0.00021068,2]
[362101703,1747995046260,-261.79726709,0.00021612,2]
[362101704,1747995046270,-453.07,0.00021612,2]
[362101705,1747995046280,-150.352,0.00021618,2]
[362101706,1747995046290,-960.0,0.00021618,2]
[362101707,1747995046300,-833.9141116,0.00021657,2]
[362101708,1747995046309,-847.335,0.00021675,2]
[362101709,1747995046319,-178.93976878,0.00021675,2]
[362101710,1747995046329,-579.44841629,0.00021689,2]
[362101711,1747995046338,-231.72992256,0.00021712,2]
[362101712,1747995046348,-153.176725,0.00021796,2]
[362101713,1747995046358,-566.373609,0.00021796,2]
[362101714,1747995046368,-566.373609,0.00021796,2]
[362101715,1747995046378,-150.92793609,0.00021797,6]
[362101716,1747995067646,-206.76423893,0.00017327,2]
[362101717,1747995204849,272.6,0.00026473,120]
[362101719,1747995626750,-218.71505447,0.00016388,2]
[362101722,1747995692033,510.50521,0.00013699,2]
[362101724,1747995816197,-241.33183892,0.00016224,2]
[362101726,1747996002491,5000.0,0.00016,2]
[362101734,1747996122381,452.999999,0.0002,120]
[362101762,1747996232085,-5000.0,0.0001626,2]
[362101764,1747996232095,-250.0,0.0001659,2]
[362101766,1747996232105,-277.1209591,0.00016721,2]
[362101768,1747996232115,-300.0,0.00017498,2]
[362101769,1747996232125,-1200.0,0.00017498,2]
[362101770,1747996232134,-300.0,0.00017498,2]
[362101771,1747996232144,-300.0,0.00017498,2]
[362101772,1747996232154,-522.63446735,0.000175,2]
[362101773,1747996232164,-430.0,0.000175,2]
[362101774,1747996232174,-430.0,0.000175,2]
[362101775,1747996232183,-430.0,0.000175,2]
[362101776,1747996232193,-1055.57,0.000175,2]
[362101777,1747996232203,-491.22,0.000175,2]
[362101778,1747996232212,-430.0,0.000175,2]
[362101779,1747996232222,-430.0,0.000175,2]
[362101780,1747996232231,-430.0,0.000175,2]
[362101781,1747996232241,-430.0,0.000175,2]
[362101782,1747996232250,-430.0,0.000175,2]
[362101783,1747996232260,-430.0,0.000175,2]
[362101784,1747996232269,-1023.63,0.000175,2]
[362101785,1747996232279,-3455.27284298,0.000175,2]
[362101786,1747996232290,-430.0,0.00017501,2]
[362101787,1747996232299,-430.0,0.00017501,2]
[362101788,1747996232309,-430.0,0.00017501,2]
[362101789,1747996232318,-430.0,0.00017501,2]
[362101790,1747996232328,-430.0,0.00017501,2]
[362101791,1747996232338,-430.0,0.00017501,2]
[362101792,1747996232361,-257.41110893,0.00017501,2]
[362101793,1747996232372,-430.0,0.00017501,2]
[362101794,1747996232382,-430.0,0.00017501,2]
[362101795,1747996232393,-430.0,0.00017501,2]
[362101796,1747996232403,-451.32,0.00017501,2]
[362101797,1747996232413,-430.0,0.00017501,2]
[362101798,1747996232423,-430.0,0.00017501,2]
[362101799,1747996232433,-430.0,0.00017501,2]
[362101800,1747996232443,-430.0,0.00017501,2]
[362101801,1747996232453,-430.0,0.00017501,2]
[362101802,1747996232463,-430.0,0.00017501,2]
[362101803,1747996232472,-430.0,0.00017501,2]
[362101804,1747996232483,-430.0,0.00017501,2]
[362101805,1747996232493,-430.0,0.00017501,2]
[362101806,1747996232503,-487.93,0.00017501,2]
[362101807,1747996232514,-430.0,0.00017501,2]
[362101808,1747996232524,-430.0,0.00017501,2]
[362101809,1747996232534,-430.0,0.00017501,2]
[362101810,1747996232545,-430.0,0.00017501,2]
[362101811,1747996232555,-1274.2,0.00017501,2]
[362101812,1747996232565,-430.0,0.00017501,2]
[362101813,1747996232575,-430.0,0.00017501,2]
[362101814,1747996232585,-430.0,0.00017501,2]
[362101815,1747996232596,-430.0,0.00017501,2]
[362101816,1747996232606,-430.0,0.00017501,2]
[362101817,1747996232616,-400.0,0.00017501,2]
[362101818,1747996232626,-576.68,0.00017501,2]
[362101819,1747996232637,-430.0,0.00017501,2]
[362101820,1747996232647,-452.75,0.00017501,2]
[362101821,1747996232657,-430.0,0.00017501,2]
[362101822,1747996232667,-414.25000502,0.00017674,2]
[362101823,1747996232677,-430.0,0.00017774,2]
[362101824,1747996232687,-430.0,0.00017774,2]
[362101825,1747996232696,-1055.57,0.00017774,2]
[362101826,1747996232707,-491.22,0.00017774,2]
[362101827,1747996232716,-430.0,0.00017774,2]
[362101828,1747996232726,-195.19293031,0.00017774,2]
[362101829,1747996232736,-430.0,0.00017774,2]
[362101830,1747996232746,-430.0,0.00017774,2]
[362101831,1747996232756,-430.0,0.00017774,2]
[362101832,1747996232769,-430.0,0.00017774,2]
[362101833,1747996232779,-1023.63,0.00017774,2]
[362101834,1747996232788,-299.6218515,0.00017775,2]
[362101835,1747996232798,-549.07291538,0.00017775,2]
[362101836,1747996232808,-430.0,0.00017775,2]
[362101837,1747996232819,-430.0,0.00017775,2]
[362101838,1747996232829,-430.0,0.00017775,2]
[362101839,1747996232839,-430.0,0.00017775,2]
[362101840,1747996232849,-430.0,0.00017775,2]
[362101841,1747996232859,-430.0,0.00017775,2]
[362101842,1747996232869,-430.0,0.00017775,2]
[362101843,1747996232879,-430.0,0.00017775,2]
[362101844,1747996232888,-430.0,0.00017775,2]
[362101845,1747996232898,-451.32,0.00017775,2]
[362101846,1747996232908,-434.27423443,0.00017775,2]
[362101847,1747996232918,-430.0,0.00017775,2]
[362101848,1747996232927,-430.0,0.00017775,2]
[362101849,1747996232936,-430.0,0.00017775,2]
[362101850,1747996232946,-430.0,0.00017775,2]
[362101851,1747996232957,-430.0,0.00017775,2]
[362101852,1747996232971,-430.0,0.00017775,2]
[362101853,1747996233176,-430.0,0.00017775,2]
[362101854,1747996233186,-430.0,0.00017775,2]
[362101855,1747996233196,-487.93,0.00017775,2]
[362101856,1747996233207,-154.75198461,0.00017775,2]
[362101857,1747996233216,-430.0,0.00017775,2]
[362101858,1747996233226,-430.0,0.00017775,2]
[362101859,1747996233236,-430.0,0.00017775,2]
[362101860,1747996233245,-1274.2,0.00017775,2]
[362101861,1747996233256,-430.0,0.00017775,2]
[362101862,1747996233267,-430.0,0.00017775,2]
[362101863,1747996233278,-430.0,0.00017775,2]
[362101864,1747996233290,-430.0,0.00017775,2]
[362101865,1747996233301,-440.06832342,0.00017775,2]
[362101866,1747996233311,-474.78914695,0.00017775,2]
[362101867,1747996233320,-430.0,0.00017775,2]
[362101868,1747996233330,-452.75,0.00017775,2]
[362101869,1747996233340,-430.0,0.00017775,2]
[362101870,1747996233350,-12647.66147447,0.0001799,2]
[362101871,1747996233360,-160.0,0.0001799,2]
[362101872,1747996233370,-894.64583333,0.0001799,2]
[362101873,1747996233380,-160.0,0.0001799,2]
[362101874,1747996233390,-160.0,0.0001799,2]
[362101875,1747996233400,-422.85710789,0.0001799,2]
[362101876,1747996233410,-160.0,0.0001799,2]
[362101877,1747996233420,-212.48480548,0.0001799,2]
[362101878,1747996233430,-160.0,0.0001799,2]
[362101879,1747996233440,-160.0,0.0001799,2]
[362101880,1747996233450,-314.57823366,0.0001799,2]
[362101881,1747996233460,-500.0,0.00017999,2]
[362101882,1747996233471,-500.0,0.00017999,2]
[362101883,1747996233480,-642.21397312,0.00017999,2]
[362101884,1747996233490,-500.0,0.00017999,2]
[362101885,1747996233500,-500.0,0.00017999,2]
[362101886,1747996233510,-500.0,0.00017999,2]
[362101887,1747996233522,-273.81172889,0.00017999,2]
[362101888,1747996233534,-500.0,0.00017999,2]
[362101889,1747996233543,-500.0,0.00017999,2]
[362101890,1747996233554,-500.0,0.00017999,2]
[362101891,1747996233564,-417.01287872,0.00017999,2]
[362101892,1747996233574,-500.0,0.00017999,2]
[362101893,1747996233585,-168.52616067,0.00017999,2]
[362101894,1747996233595,-500.0,0.00017999,2]
[362101895,1747996233605,-500.0,0.00017999,2]
[362101896,1747996233615,-500.0,0.00017999,2]
[362101897,1747996233624,-500.0,0.00017999,2]
[362101898,1747996233634,-500.0,0.00017999,2]
[362101899,1747996233644,-500.0,0.00017999,2]
[362101900,1747996233654,-500.0,0.00017999,2]
[362101901,1747996233664,-300.0,0.00017999,2]
[362101902,1747996233674,-250.0,0.00017999,2]
[362101903,1747996233683,-153.98072892,0.00017999,2]
[362101904,1747996233693,-500.0,0.00017999,2]
[362101905,1747996233702,-500.0,0.00017999,2]
[362101906,1747996233712,-500.0,0.00017999,2]
[362101907,1747996233722,-500.0,0.00017999,2]
[362101908,1747996233731,-500.0,0.00017999,2]
[362101909,1747996233742,-500.0,0.00017999,2]
[362101910,1747996233751,-500.0,0.00017999,2]
[362101911,1747996233764,-500.0,0.00017999,2]
[362101912,1747996233774,-300.0,0.00017999,2]
[362101913,1747996233784,-250.0,0.00017999,2]
[362101914,1747996233794,-500.0,0.00017999,2]
[362101915,1747996233804,-500.0,0.00017999,2]
[362101916,1747996233814,-500.0,0.00017999,2]
[362101917,1747996233823,-500.0,0.00017999,2]
[362101918,1747996233833,-500.0,0.00017999,2]
[362101919,1747996233844,-500.0,0.00017999,2]
[362101920,1747996233855,-500.0,0.00017999,2]
[362101921,1747996233865,-200.0,0.00017999,2]
[362101922,1747996233874,-529.27671901,0.00017999,2]
[362101923,1747996233883,-387.15466235,0.00017999,2]
[362101924,1747996233893,-500.0,0.00017999,2]
[362101925,1747996233903,-500.0,0.00017999,2]
[362101926,1747996233913,-500.0,0.00017999,2]
[362101927,1747996233922,-404.37413477,0.00017999,2]
[362101928,1747996233932,-500.0,0.00017999,2]
[362101929,1747996233942,-500.0,0.00017999,2]
[362101930,1747996233952,-500.0,0.00017999,2]
[362101931,1747996233961,-500.0,0.00017999,2]
[362101932,1747996233971,-250.0,0.00017999,2]
[362101933,1747996233980,-500.0,0.00017999,2]
[362101934,1747996233990,-500.0,0.00017999,2]
[362101935,1747996233999,-500.0,0.00017999,2]
[362101936,1747996234009,-540.43741347,0.00017999,2]
[362101937,1747996234019,-500.0,0.00017999,2]
[362101938,1747996234029,-500.0,0.00017999,2]
[362101939,1747996234039,-500.0,0.00017999,2]
[362101940,1747996234048,-500.0,0.00017999,2]
[362101941,1747996234058,-500.0,0.00017999,2]
[362101942,1747996234068,-500.0,0.00017999,2]
[362101943,1747996234077,-500.0,0.00017999,2]
[362101944,1747996234086,-500.0,0.00017999,2]
[362101945,1747996234095,-500.0,0.00017999,2]
[362101946,1747996234105,-500.0,0.00017999,2]
[362101947,1747996234116,-500.0,0.00017999,2]
[362101948,1747996234126,-230.0,0.00017999,2]
[362101949,1747996234135,-500.0,0.00017999,2]
[362101950,1747996234144,-500.0,0.00017999,2]
[362101951,1747996234154,-500.0,0.00017999,2]
[362101952,1747996234164,-203.15049443,0.00017999,2]
[362101953,1747996234174,-500.0,0.00017999,2]
[362101954,1747996234184,-38122.01833852,0.00018,2]
[362101955,1747996234194,-5574.99915474,0.00018,2]
[362101956,1747996234203,-430.0,0.00018048,2]
[362101957,1747996234213,-430.0,0.00018048,2]
[362101958,1747996234222,-1055.57,0.00018048,2]
[362101959,1747996234232,-491.22,0.00018048,2]
[362101960,1747996234242,-430.0,0.00018048,2]
[362101961,1747996234251,-430.0,0.00018048,2]
[362101962,1747996234261,-430.0,0.00018048,2]
[362101963,1747996234271,-430.0,0.00018048,2]
[362101964,1747996234280,-430.0,0.00018048,2]
[362101965,1747996234292,-1023.63,0.00018048,2]
[362101966,1747996234302,-430.0,0.00018049,2]
[362101967,1747996234312,-430.0,0.00018049,2]
[362101968,1747996234322,-430.0,0.00018049,2]
[362101969,1747996234332,-430.0,0.00018049,2]
[362101970,1747996234342,-430.0,0.00018049,2]
[362101971,1747996234352,-430.0,0.00018049,2]
[362101972,1747996234362,-430.0,0.00018049,2]
[362101973,1747996234372,-430.0,0.00018049,2]
[362101974,1747996234383,-430.0,0.00018049,2]
[362101975,1747996234392,-451.32,0.00018049,2]
[362101976,1747996234402,-430.0,0.00018049,2]
[362101977,1747996234412,-430.0,0.00018049,2]
[362101978,1747996234422,-430.0,0.00018049,2]
[362101979,1747996234444,-430.0,0.00018049,2]
[362101980,1747996234457,-430.0,0.00018049,2]
[362101981,1747996234468,-430.0,0.00018049,2]
[362101982,1747996234479,-430.0,0.00018049,2]
[362101983,1747996234489,-430.0,0.00018049,2]
[362101984,1747996234500,-487.93,0.00018049,2]
[362101985,1747996234511,-479.999999,0.00018049,2]
[362101986,1747996234521,-430.0,0.00018049,2]
[362101987,1747996234531,-430.0,0.00018049,2]
[362101988,1747996234542,-1274.2,0.00018049,2]
[362101989,1747996234553,-430.0,0.00018049,2]
[362101990,1747996234564,-430.0,0.00018049,2]
[362101991,1747996234575,-430.0,0.00018049,2]
[362101992,1747996234586,-430.0,0.00018049,2]
[362101993,1747996234596,-430.0,0.00018049,2]
[362101994,1747996234606,-452.75,0.00018049,2]
[362101995,1747996234616,-430.0,0.00018049,2]
[362101996,1747996234627,-5574.99915446,0.00018141,2]
[362101997,1747996234639,-430.0,0.00018322,2]
[362101998,1747996234650,-430.0,0.00018322,2]
[362101999,1747996234661,-1055.57,0.00018322,2]
[362102000,1747996234671,-491.22,0.00018322,2]
[362102001,1747996234682,-430.0,0.00018322,2]
[362102002,1747996234693,-430.0,0.00018322,2]
[362102003,1747996234703,-430.0,0.00018322,2]
[362102004,1747996234713,-1023.63,0.00018322,2]
[362102005,1747996234724,-430.0,0.00018323,2]
[362102006,1747996234734,-430.0,0.00018323,2]
[362102007,1747996234744,-430.0,0.00018323,2]
[362102008,1747996234754,-430.0,0.00018323,2]
[362102009,1747996234767,-430.0,0.00018323,2]
[362102010,1747996234777,-430.0,0.00018323,2]
[362102011,1747996234787,-430.0,0.00018323,2]
[362102012,1747996234798,-430.0,0.00018323,2]
[362102013,1747996234810,-451.32,0.00018323,2]
[362102014,1747996234820,-430.0,0.00018323,2]
[362102015,1747996234830,-430.0,0.00018323,2]
[362102016,1747996234842,-430.0,0.00018323,2]
[362102017,1747996234852,-430.0,0.00018323,2]
[362102018,1747996234862,-430.0,0.00018323,2]
[362102019,1747996234872,-444.36569421,0.00018323,2]
[362102020,1747996234883,-430.0,0.00018323,2]
[362102021,1747996234893,-487.93,0.00018323,2]
[362102022,1747996234903,-430.0,0.00018323,2]
[362102023,1747996234913,-430.0,0.00018323,2]
[362102024,1747996234925,-1274.2,0.00018323,2]
[362102025,1747996234935,-430.0,0.00018323,2]
[362102026,1747996234946,-430.0,0.00018323,2]
[362102027,1747996234957,-430.0,0.00018323,2]
[362102028,1747996234969,-430.0,0.00018323,2]
[362102029,1747996234979,-430.0,0.00018323,2]
[362102030,1747996234989,-452.75,0.00018323,2]
[362102031,1747996235000,-298.39,0.00018323,2]
[362102032,1747996235010,-5574.99915446,0.00018383,2]
[362102033,1747996235021,-4749.70748245,0.00018516,2]
[362102034,1747996235031,-430.0,0.00018596,2]
[362102035,1747996235042,-430.0,0.00018596,2]
[362102036,1747996235053,-1055.57,0.00018596,2]
[362102037,1747996235063,-491.22,0.00018596,2]
[362102038,1747996235079,-430.0,0.00018596,2]
[362102039,1747996235089,-430.0,0.00018596,2]
[362102040,1747996235100,-430.0,0.00018596,2]
[362102041,1747996235110,-1023.63,0.00018596,2]
[362102042,1747996235121,-285.64232923,0.00018597,2]
[362102043,1747996235131,-430.0,0.00018597,2]
[362102044,1747996235142,-430.0,0.00018597,2]
[362102045,1747996235152,-430.0,0.00018597,2]
[362102046,1747996235162,-430.0,0.00018597,2]
[362102047,1747996235172,-430.0,0.00018597,2]
[362102048,1747996235183,-430.0,0.00018597,2]
[362102049,1747996235193,-430.0,0.00018597,2]
[362102050,1747996235204,-451.32,0.00018597,2]
[362102051,1747996235214,-430.0,0.00018597,2]
[362102052,1747996235224,-430.0,0.00018597,2]
[362102053,1747996235234,-430.0,0.00018597,2]
[362102054,1747996235244,-430.0,0.00018597,2]
[362102055,1747996235254,-430.0,0.00018597,2]
[362102056,1747996235263,-430.0,0.00018597,2]
[362102057,1747996235274,-487.93,0.00018597,2]
[362102058,1747996235284,-430.0,0.00018597,2]
[362102059,1747996235294,-430.0,0.00018597,2]
[362102060,1747996235305,-1274.2,0.00018597,2]
[362102061,1747996235316,-276.57723153,0.00018597,2]
[362102062,1747996235327,-430.0,0.00018597,2]
[362102063,1747996235340,-430.0,0.00018597,2]
[362102064,1747996235350,-430.0,0.00018597,2]
[362102065,1747996235360,-430.0,0.00018597,2]
[362102066,1747996235371,-452.75,0.00018597,2]
[362102067,1747996235381,-5574.99915446,0.00018624,2]
[362102068,1747996235391,-213.33990914,0.00018669,2]
[362102069,1747996235401,-500.84592469,0.00018679,2]
[362102070,1747996235411,-500.0,0.00018679,2]
[362102071,1747996235421,-500.0,0.00018679,2]
[362102072,1747996235431,-500.0,0.00018683,2]
[362102073,1747996235442,-5574.99915446,0.00018866,2]
[362102074,1747996235452,-430.0,0.0001887,2]
[362102075,1747996235462,-430.0,0.0001887,2]
[362102076,1747996235472,-1055.57,0.0001887,2]
[362102077,1747996235483,-491.22,0.0001887,2]
[362102078,1747996235493,-430.0,0.0001887,2]
[362102079,1747996235503,-430.0,0.0001887,2]
[362102080,1747996235514,-430.0,0.0001887,2]
[362102081,1747996235524,-1023.63,0.0001887,2]
[362102082,1747996235535,-430.0,0.00018871,2]
[362102083,1747996235545,-430.0,0.00018871,2]
[362102084,1747996235556,-430.0,0.00018871,2]
[362102085,1747996235566,-430.0,0.00018871,2]
[362102086,1747996235575,-430.0,0.00018871,2]
[362102087,1747996235585,-430.0,0.00018871,2]
[362102088,1747996235595,-568.17713632,0.00018871,2]
[362102089,1747996235607,-451.32,0.00018871,2]
[362102090,1747996235618,-430.0,0.00018871,2]
[362102091,1747996235628,-430.0,0.00018871,2]
[362102092,1747996235638,-430.0,0.00018871,2]
[362102093,1747996235648,-430.0,0.00018871,2]
[362102094,1747996235658,-430.0,0.00018871,2]
[362102095,1747996235668,-430.0,0.00018871,2]
[362102096,1747996235679,-487.93,0.00018871,2]
[362102097,1747996235689,-430.0,0.00018871,2]
[362102098,1747996235705,-430.0,0.00018871,2]
[362102099,1747996235716,-1274.2,0.00018871,2]
[362102100,1747996235726,-430.0,0.00018871,2]
[362102101,1747996235736,-430.0,0.00018871,2]
[362102102,1747996235746,-430.0,0.00018871,2]
[362102103,1747996235756,-430.0,0.00018871,2]
[362102104,1747996235768,-452.75,0.00018871,2]
[362102105,1747996235778,-1845.90084955,0.000189,2]
[362102106,1747996235788,-749.96083959,0.00019078,2]
[362102107,1747996235798,-420.0,0.00019102,2]
[362102108,1747996235810,-420.0,0.00019102,2]
[362102109,1747996235820,-5574.99915446,0.00019107,2]
[362102110,1747996235830,-430.0,0.00019144,2]
[362102111,1747996235840,-430.0,0.00019144,2]
[362102112,1747996235852,-1055.57,0.00019144,2]
[362102113,1747996235863,-491.22,0.00019144,2]
[362102114,1747996235873,-430.0,0.00019144,2]
[362102115,1747996235882,-430.0,0.00019144,2]
[362102116,1747996235892,-430.0,0.00019144,2]
[362102117,1747996235903,-1023.63,0.00019144,2]
[362102118,1747996235914,-380.34343014,0.00019145,2]
[362102119,1747996235924,-430.0,0.00019145,2]
[362102120,1747996235935,-430.0,0.00019145,2]
[362102121,1747996235946,-430.0,0.00019145,2]
[362102122,1747996235956,-430.0,0.00019145,2]
[362102123,1747996235966,-430.0,0.00019145,2]
[362102124,1747996235976,-451.32,0.00019145,2]
[362102125,1747996235986,-430.0,0.00019145,2]
[362102126,1747996235996,-430.0,0.00019145,2]
[362102127,1747996236009,-430.0,0.00019145,2]
[362102128,1747996236025,-430.0,0.00019145,2]
[362102129,1747996236042,-430.0,0.00019145,2]
[362102130,1747996236054,-430.0,0.00019145,2]
[362102131,1747996236065,-487.93,0.00019145,2]
[362102132,1747996236076,-430.0,0.00019145,2]
[362102133,1747996236087,-323.6463288,0.00019145,2]
[362102134,1747996236097,-1274.2,0.00019145,2]
[362102135,1747996236107,-430.0,0.00019145,2]
[362102136,1747996236118,-430.0,0.00019145,2]
[362102137,1747996236128,-175.21708032,0.00019145,2]
[362102138,1747996236139,-430.0,0.00019145,2]
[362102139,1747996236149,-452.75,0.00019145,2]
[362102140,1747996236160,-400.0,0.00019178,2]
[362102141,1747996236170,-500.0,0.00019178,2]
[362102142,1747996236181,-500.0,0.00019178,2]
[362102143,1747996236192,-500.0,0.00019178,2]
[362102144,1747996236203,-500.0,0.00019178,2]
[362102145,1747996236213,-500.0,0.00019178,2]
[362102146,1747996236223,-257.14646309,0.00019178,2]
[362102147,1747996236232,-500.0,0.00019178,2]
[362102148,1747996236242,-500.0,0.00019178,2]
[362102149,1747996236252,-500.0,0.00019178,2]
[362102150,1747996236263,-500.0,0.00019178,2]
[362102151,1747996236272,-500.0,0.00019178,2]
[362102152,1747996236282,-500.0,0.00019178,2]
[362102153,1747996236294,-500.0,0.00019178,2]
[362102154,1747996236304,-500.0,0.00019178,2]
[362102155,1747996236313,-500.0,0.00019178,2]
[362102156,1747996236323,-500.0,0.00019178,2]
[362102157,1747996236333,-500.0,0.00019178,2]
[362102158,1747996236344,-500.0,0.00019178,2]
[362102159,1747996236354,-645.59688555,0.00019178,2]